bitfinex-derivatives/quotes_SOLF0:USTF0_20251107
["timestamp","ask_amount","ask_price","bid_price","bid_amount"]
[1762534324005,2.97,157.41,157.3,6.7455]
[1762534324609,2.97,157.41,157.31,5.7249]
[1762534324913,5.7198,157.46,157.33,1.02]
[1762534325118,8.6898,157.46,157.35,1.02]
[1762534325314,2.97,157.46,157.36,5.7234]
[1762534325501,2.97,157.46,157.37,1.02]
[1762534326408,0.04559276,157.43,157.4,0.04035505]
[1762534327113,3.01559276,157.43,157.4,0.04035505]
[1762534328006,3.01559276,157.43,157.32,1.02]
[1762534328305,2.97,157.43,157.32,1.02]
[1762534328709,8.6923,157.39,157.29,6.7856]
[1762534328904,2.97,157.43,157.3,1.06]
[1762534329204,2.97,157.37,157.35,0.04515322]
[1762534329408,2.97,157.37,157.27,5.7266]
[1762534329711,5.47358886,157.42,157.27,1.06]
[1762534329912,5.47358886,157.42,157.24,25.49358886]
[1762534329913,0.04727967,157.34,157.31,1.06]
[1762534330104,0.04162959,157.34,157.31,1.10672568]
[1762534331618,2.97,157.46,157.31,1.10672568]
[1762534331811,2.97,157.44,157.32,1.06]
[1762534332520,2.97,157.44,157.27,5.47358886]
[1762534332521,2.97,157.39,157.36,0.04224071]
[1762534332720,5.76883976,157.4,157.36,0.04224071]
[1762534332721,0.04653976,157.4,157.36,0.04224071]
[1762534333418,0.04653976,157.4,157.36,1.10224071]
[1762534334617,2.97,157.54,157.37,1.06]
[1762534334822,2.97,157.54,157.4,1.06]
[1762534335017,5.47358886,157.55,157.36,62.0]
[1762534335018,2.97,157.52,157.36,68.53358886]
[1762534335215,2.97,157.51,157.37,1.06]
[1762534335413,5.7197,157.47,157.37,1.06]
[1762534335612,2.97,157.51,157.4,0.04065218]
[1762534335918,2.97,157.51,157.44,0.04646586]
[1762534336221,5.47358886,157.52,157.44,0.04646586]
[1762534336222,2.97,157.47,157.44,0.04646586]
[1762534336619,2.97,157.52,157.44,0.04646586]
[1762534336819,8.44358886,157.52,157.44,0.04646586]
[1762534337127,2.97,157.48,157.44,0.04646586]
[1762534337616,5.47358886,157.49,157.36,1.06]
[1762534337617,2.97,157.45,157.36,1.06]
[1762534337818,2.97,157.45,157.32,1.11]
[1762534338730,0.04036213,157.4,157.37,0.04785247]
[1762534339023,3.01036213,157.4,157.37,0.04785247]
[1762534339219,0.04036213,157.4,157.28,6.8362]
[1762534339518,2.97,157.39,157.28,1.11]
[1762534339922,5.47358886,157.37,157.22,91.6]
[1762534340116,2.97,157.32,157.18,1.11]
[1762534340317,89.0187,157.39,157.13,12.31508886]
[1762534340318,5.7277,157.25,157.13,12.31508886]
[1762534340618,2.97,157.25,157.23,0.04642162]
[1762534340920,2.97,157.25,157.13,1.11]
[1762534341120,2.97,157.25,157.22,0.04172967]
[1762534341422,3.01081672,157.25,157.13,1.11]
[1762534341725,2.97,157.2,157.08,1.15]
[1762534342124,2.97,157.2,157.1,5.7328]
[1762534342421,2.97,157.25,157.11,1.15]
[1762534342619,0.04385468,157.17,157.14,1.15]
[1762534342926,2.97,157.25,157.14,1.15]
[1762534343224,2.97,157.25,157.15,63.15]
[1762534343425,2.97,157.25,157.18,0.04021658]
[1762534344325,0.04083976,157.23,157.18,1.19021658]
[1762534344825,3.01083976,157.23,157.18,0.04021658]
[1762534346020,2.97,157.2,157.18,0.04021658]
[1762534346420,0.04083976,157.23,157.18,0.04021658]
[1762534346733,3.01083976,157.23,157.18,0.04021658]
[1762534347224,0.04083976,157.23,157.18,0.04021658]
[1762534347416,0.04083976,157.23,157.18,1.19021658]
[1762534347618,0.04083976,157.23,157.18,6.92011658]
[1762534348024,0.04083976,157.23,157.19,1.15]
[1762534348325,0.04083976,157.23,157.2,6.8791]
[1762534348523,0.04083976,157.23,157.21,1.15]
[1762534349031,2.97,157.33,157.21,1.15]
[1762534349327,2.97,157.33,157.22,5.7285]
[1762534349519,2.97,157.33,157.21,1.15]
[1762534349919,0.04404199,157.29,157.25,0.04747916]
[1762534350225,3.01404199,157.29,157.25,0.04747916]
[1762534350622,0.04404199,157.29,157.25,0.04747916]
[1762534350833,0.04404199,157.29,157.25,1.19747916]
[1762534351125,0.04404199,157.29,157.25,0.04747916]
[1762534351726,0.04404199,157.29,157.25,1.19747916]
[1762534351928,0.04404199,157.29,157.28,1.15]
[1762534352330,3.1,157.38,157.29,5.7258]
[1762534352529,3.1,157.38,157.28,1.15]
[1762534352724,8.57358886,157.42,157.28,1.15]
[1762534352926,3.1,157.42,157.28,1.15]
[1762534353135,3.1,157.42,157.3,1.14]
[1762534353425,0.02573323,157.38,157.35,1.14]
[1762534353618,0.02573323,157.38,157.34,0.0462549]
[1762534353818,8.57358886,157.42,157.35,5.79066397]
[1762534354020,5.7228,157.38,157.36,1.88321513]
[1762534354223,3.1,157.37,157.25,1.14]
[1762534354430,5.47358886,157.42,157.19,89.124]
[1762534354431,3.1,157.41,157.27,3.2]
[1762534354823,3.1,157.41,157.32,0.04204037]
[1762534355130,8.8223,157.39,157.32,0.04204037]
[1762534355325,3.1,157.38,157.34,0.04836416]
[1762534356227,3.1,157.42,157.35,5.7235]
[1762534356433,3.1,157.42,157.34,0.04836416]
[1762534357128,94.62,157.46,157.34,3.24836416]
[1762534357322,3.1,157.45,157.38,0.04779601]
[1762534357525,3.1,157.42,157.38,0.04779601]
[1762534357721,3.1,157.42,157.38,0.04238898]
[1762534358426,3.1,157.4,157.38,0.04238898]
[1762534359924,8.822,157.4,157.38,0.04238898]
[1762534360126,3.1,157.39,157.38,0.04238898]
[1762534361035,5.7206,157.44,157.38,0.04238898]
[1762534361228,419.0,157.52,157.38,0.04238898]
[1762534361229,3.18,157.46,157.38,0.04238898]
[1762534361422,3.18,157.5,157.4,3.24558989]
[1762534361626,3.18,157.5,157.43,5.7207]
[1762534361833,3.18,157.5,157.43,5.76200499]
[1762534362230,3.18,157.54,157.43,0.04130499]
[1762534362528,3.18,157.54,157.47,0.04857021]
[1762534362932,8.897,157.54,157.47,0.04857021]
[1762534363127,3.18,157.54,157.47,0.04857021]
[1762534363523,3.18,157.53,157.47,0.04857021]
[1762534364236,3.18,157.49,157.47,0.04857021]
[1762534364436,3.18,157.49,157.46,0.04311493]
[1762534364637,3.18,157.47,157.46,0.04647712]
[1762534364935,3.18,157.47,157.33,3.2]
[1762534365132,8.8994,157.47,157.38,5.7224]
[1762534365328,8.8994,157.47,157.33,3.2]
[1762534365329,3.18,157.47,157.33,3.2]
[1762534365935,3.22116464,157.42,157.38,0.04016947]
[1762534366138,3.22116464,157.42,157.39,5.75240396]
[1762534366429,8.94256464,157.42,157.4,5.75240396]
[1762534366635,0.04116464,157.42,157.41,5.75240396]
[1762534366833,3.22116464,157.42,157.41,5.75240396]
[1762534367833,0.04116464,157.42,157.41,5.75240396]
[1762534369037,3.22116464,157.42,157.41,5.75240396]
[1762534369427,3.22116464,157.42,157.39,3.96e-06]
[1762534369638,3.18,157.39,157.31,3.2]
[1762534369940,3.18,157.39,157.27,3.2]
[1762534370134,5.7239,157.35,157.27,3.2]
[1762534370332,3.18,157.39,157.27,3.2]
[1762534370833,3.18,157.43,157.31,3.24449609]
[1762534371030,3.18,157.43,157.33,3.2]
[1762534371236,5.7214,157.42,157.35,5.7235]
[1762534371531,3.18,157.43,157.35,5.7235]
[1762534371934,0.0403677,157.41,157.37,0.0443175]
[1762534372836,3.18,157.4,157.37,0.0443175]
[1762534373347,0.0403677,157.41,157.37,0.0443175]
[1762534374537,0.0403677,157.41,157.37,3.2443175]
[1762534374737,0.0403677,157.41,157.37,0.0443175]
[1762534375131,0.0403677,157.41,157.38,8.9224]
[1762534375335,0.0403677,157.41,157.39,3.2]
[1762534375637,5.7193,157.48,157.39,3.2]
[1762534375837,5.7193,157.48,157.39,65.2]
[1762534376031,5.7193,157.48,157.4,5.7217]
[1762534376231,5.7193,157.48,157.39,65.2]
[1762534376537,3.18,157.46,157.42,0.04100226]
[1762534376729,3.18,157.46,157.42,0.04195083]
[1762534377133,8.9006,157.44,157.42,0.04195083]
[1762534377336,3.18,157.43,157.42,0.04195083]
[1762534378030,3.18,157.45,157.42,0.04195083]
[1762534378539,8.8996,157.47,157.42,0.04195083]
[1762534378740,3.18,157.51,157.42,3.24195083]
[1762534378942,3.18,157.51,157.45,0.04891322]
[1762534379131,8.8988,157.49,157.45,0.04891322]
[1762534379329,3.18,157.49,157.45,0.04891322]
[1762534379527,3.18,157.53,157.45,3.24891322]
[1762534379733,3.18,157.57,157.48,5.7188]
[1762534379933,3.18,157.57,157.51,0.04766189]
[1762534380541,8.8959,157.57,157.51,0.04766189]
[1762534380848,3.18,157.56,157.51,0.04766189]
[1762534381042,3.18,157.53,157.52,0.0401636]
[1762534381841,5.7179,157.52,157.45,3.2]
[1762534382239,3.18,157.53,157.46,11.39199462]
[1762534382440,3.18,157.53,157.47,5.67239462]
[1762534382648,3.18,157.53,157.48,5.67239462]
[1762534382840,2.92,157.51,157.49,0.04751803]
[1762534383039,2.92,157.51,157.48,0.04119347]
[1762534383244,2.96584147,157.51,157.48,0.04119347]
[1762534383642,2.92,157.49,157.48,0.04119347]
[1762534383841,2.92,157.49,157.33,11.4483]
[1762534383842,2.92,157.49,157.32,19.16739236]
[1762534384043,8.6417,157.41,157.32,9.9]
[1762534384346,2.92,157.41,157.3,3.05]
[1762534384842,0.04854473,157.37,157.34,0.04413994]
[1762534385038,2.96854473,157.37,157.34,0.04413994]
[1762534385641,0.04854473,157.37,157.34,0.04413994]
[1762534385849,0.04854473,157.37,157.34,3.09413994]
[1762534386140,0.04854473,157.37,157.35,8.7735]
[1762534386338,2.96854473,157.37,157.34,0.04413994]
[1762534386541,2.92,157.35,157.34,0.04413994]
[1762534386740,2.92,157.35,157.26,3.05]
[1762534387136,2.92,157.4,157.26,3.05]
[1762534387540,5.7235,157.36,157.26,8.7767]
[1762534387746,2.92,157.36,157.26,3.05]
[1762534387952,0.04546503,157.33,157.29,3.09200046]
[1762534388244,2.92,157.45,157.35,3.05]
[1762534388435,2.92,157.45,157.36,3.05]
[1762534388841,2.92,157.52,157.36,3.05]
[1762534389040,2.92,157.52,157.28,100.5243]
[1762534389041,2.92,157.52,157.4,3.05]
[1762534389243,2.9627284,157.46,157.42,0.04466591]
[1762534389444,15.12160558,157.58,157.39,9.26739236]
[1762534389445,2.92,157.51,157.39,9.26739236]
[1762534389757,0.04177211,157.46,157.43,3.05]
[1762534389948,0.04177211,157.46,157.44,5.7202]
[1762534390152,0.04177211,157.46,157.44,8.7702]
[1762534390339,2.92,157.59,157.45,3.05]
[1762534390539,17.14858947,157.66,157.45,3.05]
[1762534390540,2.92,157.57,157.45,3.05]
[1762534390746,2.92,157.56,157.45,3.05]
[1762534390945,5.7176,157.52,157.43,5.7207]
[1762534391252,0.0421037,157.49,157.46,0.0444765]
[1762534391850,0.0421037,157.49,157.46,3.0944765]
[1762534392947,0.0421037,157.49,157.46,0.0444765]
[1762534393147,2.9621037,157.49,157.46,0.0444765]
[1762534394956,2.92,157.47,157.34,12.31739236]
[1762534395347,7.72954345,157.46,157.34,12.31739236]
[1762534395548,2.92,157.46,157.34,12.31739236]
[1762534395948,0.04371364,157.42,157.38,0.04273185]
[1762534396143,0.04371364,157.42,157.39,3.05]
[1762534396351,17.14858947,157.54,157.38,0.04273185]
[1762534396352,4.81237576,157.48,157.41,3.05]
[1762534396658,2.92,157.5,157.41,3.05]
[1762534396951,2.92,157.54,157.41,3.05]
[1762534397258,7.73111389,157.53,157.41,3.05]
[1762534397549,0.0440628,157.49,157.45,3.09763312]
[1762534397754,0.04156432,157.49,157.47,3.05]
[1762534397957,4.81148536,157.56,157.47,3.05]
[1762534398264,4.81148536,157.55,157.47,3.05]
[1762534398469,2.92,157.57,157.47,3.05]
[1762534398697,4.80936662,157.56,157.47,3.05]
[1762534398845,2.92,157.57,157.39,66.4]
[1762534398846,2.92,157.57,157.5,0.04830935]
[1762534399048,2.92,157.55,157.43,3.05]
[1762534399245,10.52640436,157.54,157.46,5.7195]
[1762534399455,2.92,157.54,157.47,0.04423914]
[1762534399856,2.92,157.58,157.47,0.04423914]
[1762534400058,7.72966244,157.57,157.51,0.04501563]
[1762534400251,2.92,157.55,157.51,0.04501563]
[1762534400452,8.6371,157.54,157.51,0.04501563]
[1762534400655,8.6371,157.54,157.51,0.04806799]
[1762534400957,2.92,157.52,157.51,0.04806799]
[1762534401160,2.92,157.52,157.5,0.04537655]
[1762534401349,2.92,157.51,157.49,0.04432244]
[1762534401546,2.92,157.5,157.48,0.04107243]
[1762534401956,8.6385,157.5,157.48,0.04107243]
[1762534402158,2.92,157.49,157.48,0.04107243]
[1762534402460,5.717,157.54,157.48,0.04107243]
[1762534402657,8.637,157.54,157.48,0.04107243]
[1762534403746,5.85421322,157.59,157.48,0.04107243]
[1762534403747,2.92,157.51,157.48,0.04107243]
[1762534403960,2.92,157.51,157.48,0.04866247]
[1762534404457,7.72943547,157.55,157.48,0.04866247]
[1762534404754,7.7294476,157.54,157.5,0.04697358]
[1762534404957,2.92,157.53,157.5,0.04697358]
[1762534405755,2.92,157.51,157.38,12.31739236]
[1762534405955,2.92,157.49,157.38,12.31739236]
[1762534406163,2.92,157.49,157.39,3.05]
[1762534406665,0.04366171,157.46,157.44,5.7203]
[1762534406866,4.81047168,157.55,157.39,3.05]
[1762534407059,0.04184034,157.47,157.43,3.09540385]
[1762534407251,0.04578258,157.47,157.45,8.7698]
[1762534408161,2.92,157.55,157.48,5.7189]
[1762534408357,2.92,157.55,157.42,9.26739236]
[1762534408666,2.92,157.55,157.45,5.7199]
[1762534408966,5.7181,157.51,157.45,5.7199]
[1762534409165,2.92,157.5,157.46,0.04212788]
[1762534410276,2.92,157.5,157.34,12.31739236]
[1762534410561,2.92,157.46,157.35,3.05]
[1762534410762,4.9456604,157.5,157.35,3.05]
[1762534410972,2.92,157.5,157.35,3.05]
[1762534411377,0.04216702,157.44,157.41,0.04287615]
[1762534411563,419.0,157.54,157.41,3.09287615]
[1762534411763,2.92,157.55,157.43,3.05]
[1762534412170,2.92,157.55,157.44,3.14]
[1762534412667,2.92,157.55,157.48,0.04686509]
[1762534414075,3.12,157.53,157.48,0.04686509]
[1762534414272,4.9443489,157.52,157.35,3.14]
[1762534414474,3.12,157.49,157.35,3.14]
[1762534414678,3.12,157.47,157.35,3.14]
[1762534415176,3.12,157.47,157.36,3.14]
[1762534415479,0.04518374,157.43,157.39,3.18622149]
[1762534416570,3.16518374,157.43,157.39,0.04622149]
[1762534416968,0.04518374,157.43,157.39,3.18622149]
[1762534417167,0.04518374,157.43,157.39,0.04622149]
[1762534417381,3.16518374,157.43,157.39,0.04622149]
[1762534417569,0.04518374,157.43,157.39,3.18622149]
[1762534417770,3.16518374,157.43,157.39,0.04622149]
[1762534418071,0.04518374,157.43,157.39,0.04622149]
[1762534419378,0.04518374,157.43,157.39,3.18622149]
[1762534420076,0.04518374,157.43,157.39,0.04622149]
[1762534420277,0.04518374,157.43,157.39,3.25622149]
[1762534421373,3.16,157.51,157.39,3.25622149]
[1762534421674,8.11113706,157.55,157.43,3.21]
[1762534421875,3.16,157.55,157.43,3.21]
[1762534422178,3.16,157.52,157.38,3.21]
[1762534422481,3.16,157.5,157.43,0.04532209]
[1762534422679,3.16,157.49,157.45,0.04782474]
[1762534423277,3.16,157.53,157.45,0.04782474]
[1762534423576,3.16,157.53,157.47,0.04052231]
[1762534424284,13.82731265,157.57,157.47,5.75962231]
[1762534424583,8.8758,157.57,157.5,0.04130975]
[1762534424782,3.16,157.56,157.5,0.04130975]
[1762534425077,3.16,157.56,157.51,0.04106613]
[1762534425280,3.16,157.56,157.52,0.0477139]
[1762534426078,5.7149,157.6,157.52,0.0477139]
[1762534426079,3.16,157.6,157.52,0.0477139]
[1762534426581,3.16,157.58,157.52,0.0477139]
[1762534426782,3.16,157.58,157.53,0.04359667]
[1762534427185,3.16,157.57,157.53,0.04359667]
[1762534427386,3.16,157.57,157.53,0.04333739]
[1762534427575,3.16,157.54,157.53,0.04333739]
[1762534427877,3.16,157.54,157.47,8.9292]
[1762534427878,3.16,157.54,157.52,0.04750062]
[1762534428381,3.16,157.59,157.52,0.04750062]
[1762534428776,91.46,157.63,157.52,0.04750062]
[1762534428777,4.95022348,157.61,157.54,8.9265]
[1762534429080,3.16,157.62,157.56,0.04070372]
[1762534429378,3.16,157.62,157.57,0.04658393]
[1762534429379,8.8741,157.62,157.57,0.04658393]
[1762534429573,3.16,157.61,157.57,0.04658393]
[1762534429768,3.16,157.61,157.57,0.04027695]
[1762534431974,3.16,157.61,157.57,0.00027695]
[1762534432176,15.12160558,157.65,157.57,0.00027695]
[1762534432377,3.16,157.63,157.57,0.00027695]
[1762534432579,3.16,157.66,157.57,3.21027695]
[1762534433185,0.0390128,157.63,157.57,8.92587695]
[1762534433984,0.0390128,157.63,157.58,3.21]
[1762534434182,0.0390128,157.63,157.6,3.21]
[1762534434682,0.0390128,157.63,157.57,0.00027695]
[1762534435081,3.1990128,157.63,157.57,0.00027695]
[1762534435278,0.0390128,157.63,157.57,0.00027695]
[1762534437285,3.1990128,157.63,157.57,0.00027695]
[1762534437789,0.0390128,157.63,157.57,0.00027695]
[1762534438289,0.0390128,157.63,157.57,8.92607695]
[1762534438491,0.0390128,157.63,157.57,3.21027695]
[1762534438992,0.0390128,157.63,157.57,0.00027695]
[1762534439294,3.1990128,157.63,157.57,0.00027695]
[1762534439587,3.16,157.6,157.57,0.00027695]
[1762534440585,0.0390128,157.63,157.57,0.00027695]
[1762534442290,2.93,157.61,157.47,65.22]
[1762534442489,2.93,157.56,157.47,3.22]
[1762534442688,2.93,157.61,157.47,3.22]
[1762534442888,2.93,157.61,157.51,3.22]
[1762534443083,2.93,157.66,157.53,3.22]
[1762534443293,2.93,157.65,157.53,3.22]
[1762534443592,0.03928974,157.61,157.6,3.22]
[1762534443796,2.93,157.69,157.6,3.22]
[1762534444094,2.93,157.69,157.56,3.22]
[1762534444293,2.93,157.67,157.56,3.22]
[1762534444486,2.93,157.58,157.46,3.22]
[1762534444987,2.93,157.58,157.5,0.04167729]
[1762534445296,2.93,157.57,157.5,0.04167729]
[1762534445492,2.93,157.61,157.5,3.26167729]
[1762534445791,2.93,157.61,157.54,0.04679352]
[1762534446194,2.93,157.56,157.54,0.04679352]
[1762534446893,2.93,157.55,157.54,0.04679352]
[1762534447691,2.93,157.58,157.54,0.04679352]
[1762534448798,2.93,157.62,157.54,3.26679352]
[1762534448996,2.93,157.65,157.56,0.04675536]
[1762534449199,2.93,157.64,157.59,0.04618934]
[1762534449595,8.37292818,157.64,157.59,0.04618934]
[1762534449898,2.93,157.6,157.49,3.22]
[1762534450200,2.93,157.65,157.5,3.22]
[1762534450389,5.44292818,157.67,157.5,3.22]
[1762534450390,2.93,157.63,157.5,3.22]
[1762534450586,5.44292818,157.64,157.5,3.22]
[1762534450790,2.93,157.67,157.56,3.22]
[1762534451798,2.93,157.65,157.6,0.04125404]
[1762534452103,2.93,157.65,157.61,0.04451912]
[1762534452400,2.93,157.64,157.61,0.04263723]
[1762534453390,7.84006645,157.68,157.61,0.04263723]
[1762534453593,2.93,157.68,157.62,5.7138]
[1762534453899,5.7112,157.7,157.62,5.7138]
[1762534454101,7.83749734,157.71,157.64,0.04279879]
[1762534454401,2.93,157.68,157.64,0.04279879]
[1762534454589,7.83749734,157.68,157.64,0.04279879]
[1762534454795,2.93,157.65,157.64,0.04279879]
[1762534455099,2.93,157.65,157.56,3.22]
[1762534455302,5.7153,157.59,157.51,3.22]
[1762534455503,8.6453,157.59,157.51,3.22]
[1762534455694,2.93,157.59,157.51,3.22]
[1762534456001,0.04279879,157.57,157.53,0.04340234]
[1762534456298,0.04279879,157.57,157.53,3.26340234]
[1762534456488,0.04279879,157.57,157.55,5.7163]
[1762534456688,0.04279879,157.57,157.55,8.9363]
[1762534456892,0.04279879,157.57,157.56,3.22]
[1762534457809,0.04279879,157.57,157.53,0.04340234]
[1762534457810,0.04279879,157.57,157.53,3.26340234]
[1762534457997,2.93,157.63,157.53,3.26340234]
[1762534458301,2.93,157.66,157.58,5.7154]
[1762534458504,8.6427,157.66,157.57,3.22]
[1762534458702,2.93,157.66,157.57,3.22]
[1762534458890,5.7116,157.69,157.57,3.22]
[1762534459091,8.6416,157.69,157.61,0.04520154]
[1762534459298,5.44292818,157.7,157.61,0.04520154]
[1762534459494,4.90902537,157.74,157.63,3.22]
[1762534459693,5.44292818,157.81,157.67,0.04400194]
[1762534459898,5.44292818,157.78,157.72,0.04369573]
[1762534460101,11.15222818,157.75,157.73,0.04040905]
[1762534460304,5.7093,157.75,157.63,3.22]
[1762534460504,4.90668572,157.76,157.65,5.7127]
[1762534460707,5.44292818,157.77,157.67,0.04720712]
[1762534460901,5.44292818,157.74,157.7,0.04319948]
[1762534461104,5.44292818,157.71,157.58,3.22]
[1762534461496,8.37292818,157.71,157.6,5.7145]
[1762534461794,8.6413,157.7,157.6,5.7145]
[1762534461998,0.04319948,157.67,157.63,0.0410484]
[1762534462302,0.04319948,157.67,157.63,3.2610484]
[1762534462904,2.93,157.66,157.63,0.0410484]
[1762534463505,2.93,157.64,157.63,0.0410484]
[1762534464005,5.7142,157.62,157.55,3.22]
[1762534464304,2.93,157.64,157.55,3.22]
[1762534464605,5.7147,157.61,157.55,3.22]
[1762534464796,2.93,157.64,157.55,3.22]
[1762534465002,2.97027341,157.61,157.58,0.04107787]
[1762534465310,8.6454,157.59,157.58,0.04565999]
[1762534465605,2.93,157.59,157.5,3.22]
[1762534465806,8.6454,157.59,157.5,3.22]
[1762534466002,2.93,157.59,157.5,3.22]
[1762534466204,7.85591439,157.61,157.51,3.22]
[1762534466407,0.040523,157.58,157.54,0.04743388]
[1762534466605,0.040523,157.58,157.54,3.26743388]
[1762534467306,0.040523,157.58,157.54,0.04743388]
[1762534467506,2.970523,157.58,157.54,0.04743388]
[1762534468207,0.040523,157.58,157.54,3.26743388]
[1762534468703,2.970523,157.58,157.54,0.04743388]
[1762534469113,4.93451395,157.57,157.54,0.04743388]
[1762534469310,2.93,157.57,157.54,0.04743388]
[1762534469506,0.040523,157.58,157.54,3.26743388]
[1762534469910,0.040523,157.58,157.56,3.22]
[1762534471512,0.040523,157.58,157.54,3.26743388]
[1762534472215,0.040523,157.58,157.54,0.04743388]
[1762534473409,3.000523,157.58,157.54,0.04743388]
[1762534473815,3.000523,157.58,157.45,5.44292818]
[1762534473816,5.7166,157.56,157.45,3.1]
[1762534474110,2.96,157.58,157.45,3.1]
[1762534474511,2.96,157.58,157.49,3.1]
[1762534474919,0.04041617,157.55,157.52,0.04742968]
[1762534475113,0.04041617,157.55,157.53,3.1]
[1762534476021,0.04041617,157.55,157.54,8.8171]
[1762534476312,2.96,157.63,157.54,3.1]
[1762534476513,2.96,157.67,157.55,3.1]
[1762534476718,2.96,157.67,157.59,5.715]
[1762534476911,2.96,157.67,157.58,3.1]
[1762534477113,0.04849653,157.64,157.61,0.04584719]
[1762534477411,3.00849653,157.64,157.61,0.04584719]
[1762534477814,2.96,157.62,157.53,3.1]
[1762534478520,2.96,157.62,157.53,8.8173]
[1762534478712,0.04863294,157.59,157.56,0.04160773]
[1762534479818,0.04863294,157.59,157.56,3.14160773]
[1762534480014,0.04863294,157.59,157.57,8.8159]
[1762534480621,0.04863294,157.59,157.56,0.04160773]
[1762534481415,0.04863294,157.59,157.56,3.15160773]
[1762534481618,0.04863294,157.59,157.58,3.11]
[1762534482219,0.04863294,157.59,157.56,3.15160773]
[1762534483118,0.04863294,157.59,157.56,0.04160773]
[1762534483318,2.97863294,157.59,157.56,0.04160773]
[1762534483717,2.93,157.57,157.56,0.04160773]
[1762534484022,2.93,157.57,157.47,3.11]
[1762534484219,8.6461,157.57,157.5,5.7184]
[1762534484423,2.93,157.57,157.47,3.11]
[1762534484924,0.04585965,157.54,157.5,0.04683728]
[1762534485621,5.7141,157.63,157.51,3.11]
[1762534485830,2.93,157.63,157.51,3.11]
[1762534486013,7.7486941,157.63,157.51,3.11]
[1762534486328,2.93,157.63,157.55,5.7166]
[1762534486619,2.93,157.63,157.51,3.11]
[1762534486826,0.042073,157.61,157.57,0.04456328]
[1762534487222,2.972073,157.61,157.57,0.04456328]
[1762534487616,0.042073,157.61,157.57,0.04456328]
[1762534487821,0.042073,157.61,157.57,3.15456328]
[1762534488223,0.042073,157.61,157.58,3.11]
[1762534488721,0.042073,157.61,157.6,3.11]
[1762534488927,2.93,157.69,157.6,3.11]
[1762534489328,8.6418,157.69,157.6,3.11]
[1762534489829,2.93,157.65,157.63,0.04287768]
[1762534490021,2.93,157.65,157.62,0.04663472]
[1762534490222,5.44292818,157.71,157.56,3.11]
[1762534490223,2.93,157.69,157.56,3.11]
[1762534490423,0.04437519,157.62,157.58,3.15242467]
[1762534490728,0.04437519,157.62,157.58,3.15370393]
[1762534491524,0.04437519,157.62,157.58,0.04370393]
[1762534491723,2.97437519,157.62,157.58,0.04370393]
[1762534492526,0.04437519,157.62,157.58,0.04370393]
[1762534492926,0.04437519,157.62,157.58,5.75920393]
[1762534493121,2.97437519,157.62,157.58,0.04370393]
[1762534494534,2.97437519,157.62,157.5,3.11]
[1762534494535,2.93,157.61,157.5,3.11]
[1762534494936,2.93,157.61,157.51,5.718]
[1762534494937,5.7151,157.6,157.51,5.718]
[1762534495132,2.93,157.61,157.5,3.11]
[1762534495832,2.93,157.61,157.54,3.15533035]
[1762534495833,0.04475983,157.57,157.54,3.15533035]
[1762534496025,0.04475983,157.57,157.54,0.04533035]
[1762534496223,0.04475983,157.57,157.54,3.15533035]
[1762534496531,0.04475983,157.57,157.56,3.11]
[1762534496838,0.04475983,157.57,157.54,0.04533035]
[1762534497146,0.04475983,157.57,157.54,3.15533035]
[1762534497831,0.04475983,157.57,157.55,5.7166]
[1762534498134,0.04475983,157.57,157.55,8.8266]
[1762534498432,0.04475983,157.57,157.56,3.11]
[1762534498833,2.93,157.66,157.56,3.11]
[1762534499535,8.6433,157.65,157.56,3.11]
[1762534499739,0.04867807,157.62,157.59,0.04178132]